Workbook

Sheet Wstęp
B2: Funkcjonujące Farmy Fotowoltaiczne w Polsce
B3: Największy zbiór danych o dużych instalacjach PV wytwarzających już energię elektryczną

Sheet Farmy
F1: Zbiór danych o farmach PV funkcjonujących i wytwarzających energię elektryczną
F2: Zbiór powstał na podstawie danych o koncesjach na wytwarzanie energii elektrycznej udostępnianych przez Urząd Regulacji Energetyki
F3: Stan projektów w bazie danych jest na dzień 20.06.2025
F4: Copyright ©2025 IEO. Wszelkie prawa zastrzeżone.
B6: Dane instalacji | I6: Dane inwestora | P6: Dane instalacji
B7: Lp. | C7: Rodzaj instalacji | D7: Miejscowość | E7: Gmina | F7: Powiat | G7: Województwo | H7: Moc [MW] | I7: Inwestor | J7: Adres | K7: Kod pocztowy | L7: Miejscowość inwestora | M7: Województwo inwestora | N7: Spółka holdingowa | O7: NIP | P7: Data Wydania | Q7: Data Od | R7: Data Do
B8: 1 | C8: Farmy | D8: Łowisko | E8: Kamień | F8: rzeszowski | G8: podkarpackie | H8: 1.999 | I8: REMET CNC TECHNOLOGY M&P PIEKUT Sp. K. | J8: Łowisko 320A | K8: 36-053 | L8: Łowisko | M8: podkarpackie | N8: REMET CNC TECHNOLOGY M&P PIEKUT | O8: 5170374653 | P8: 2024-03-13 | Q8: 2024-03-13 | R8: 2040-12-31
B9: 2 | C9: Farmy | D9: Brzóza Stadnicka | E9: Żołynia | F9: łańcucki | G9: podkarpackie | H9: 1.174 | I9: "AGMAD-SOLAR" spółka z ograniczoną odpowiedzialnością | J9: ul. Białobrzeska 13A | K9: 37-110 | L9: Żołynia | M9: podkarpackie | N9: AGMAD - SOLAR | O9: 8151800599 | P9: 2019-12-16 | Q9: 2019-12-16 | R9: 2030-12-31
B10: 3 | C10: Farmy | D10: Wola Mrokowska | E10: Lesznowola | F10: piaseczyński | G10: mazowieckie | H10: 1.109 | I10: "Alnor - Systemy Wentylacji" Sp. z o.o. | J10: ul. Zwierzyniecka 8b | K10: 00-719 | L10: Warszawa | M10: mazowieckie | N10: ALNOR - SYSTEMY WENTYLACJI | O10: 5211068747 | P10: 2022-11-29 | Q10: 2022-11-29 | R10: 2042-11-29
B11: 4 | C11: Farmy | D11: Bajdy | E11: Zalewo | F11: iławski | G11: warmińsko-mazurskie | H11: 0.919 | I11: "Awat" Sp. z o.o. | J11: ul. 1 Maja 20B / 3 | K11: 14-200 | L11: Iława | M11: warmińsko-mazurskie | N11: AWAT | O11: 7441812340 | P11: 2021-04-06 | Q11: 2021-04-06 | R11: 2031-04-06
B12: 5 | C12: Farmy | D12: Leżachów | E12: Sieniawa | F12: przeworski | G12: podkarpackie | H12: 1.799 | I12: "Creator" Sp. z o.o. | J12: Leżachów 147 | K12: 37-530 | L12: Sieniawa | M12: podkarpackie | N12: Creator | O12: 9930651794 | P12: 2023-02-23 | Q12: 2023-02-23 | R12: 2040-12-31
B13: 6 | C13: Farmy | D13: Dębnik | E13: Reszel | F13: kętrzyński | G13: warmińsko-mazurskie | H13: 1.979 | I13: "Eko Park XIV" Spółka z ograniczoną odpowiedzialnością | J13: ul. Słowackiego 59 | K13: 87-700 | L13: Aleksandrów Kujawski | M13: kujawsko-pomorskie | N13: EKO PARK XIV | O13: 5223051422 | P13: 2020-09-25 | Q13: 2020-09-25 | R13: 2030-12-31
B14: 7 | C14: Farmy | D14: Radzie | E14: Wydminy | F14: giżycki | G14: warmińsko-mazurskie | H14: 0.999 | I14: "EKOENERGIA MAZURY RANTY" SPÓŁKA Z OGRANICZONĄ ODPOWIEDZIALNOŚCIĄ | J14: ul. GEN. WŁADYSŁAWA SIKORSKIEGO 19B | K14: 19-300 | L14: Ełk | M14: warmińsko-mazurskie | N14: EKOENERGIA MAZURY | O14: 8481865797 | P14: 2020-05-26 | Q14: 2020-05-26 | R14: 2030-05-26
B15: 8 | C15: Farmy | D15: Radzie | E15: Wydminy | F15: giżycki | G15: warmińsko-mazurskie | H15: 1.998 | I15: "EKOENERGIA MAZURY RANTY" SPÓŁKA Z OGRANICZONĄ ODPOWIEDZIALNOŚCIĄ | J15: ul. GEN. WŁADYSŁAWA SIKORSKIEGO 19B | K15: 19-300 | L15: Ełk | M15: warmińsko-mazurskie | N15: EKOENERGIA MAZURY | O15: 8481865797 | P15: 2024-07-19 | Q15: 2024-07-19 | R15: 2040-12-31
B16: 9 | C16: Farmy | D16: Oracze | E16: Ełk | F16: ełcki | G16: warmińsko-mazurskie | H16: 0.998 | I16: "EKOENERGIA MAZURY" Sp. z o. o. | J16: ul. Sikorskiego 19B | K16: 19-300 | L16: Ełk | M16: warmińsko-mazurskie | N16: EKOENERGIA MAZURY | O16: 8481864929 | P16: 2020-03-27 | Q16: 2020-03-27 | R16: 2030-03-27
B17: 10 | C17: Farmy | D17: Szczawin Duży | E17: Zgierz | F17: zgierski | G17: łódzkie | H17: 1.199 | I17: "ELEKTRIO" Marian Jóźwiak, Jarosław Zdziarski s.c. | J17: ul. Strykowska 120 | K17: 95-002 | L17: Smardzew | M17: łódzkie | N17: ELEKTRIO Marian Jóźwiak, Jarosław Zdziarski s.c. | O17: 7322170585 | P17: 2014-01-15 | Q17: 2014-01-15 | R17: 2030-12-31

Sheet Małe instalacje
F1: Zbiór danych o małych instalacjach PV funkcjonujących i wytwarzających energię elektryczną
F2: Zbiór powstał na podstawie danych o koncesjach na wytwarzanie energii elektrycznej udostępnianych przez Urząd Regulacji Energetyki
F3: Stan projektów w bazie danych jest na dzień 20.06.2025
F4: Copyright ©2025 IEO. Wszelkie prawa zastrzeżone.
B6: Dane instalacji | I6: Dane inwestora | O6: Dane instalacji
B7: Lp. | C7: Rodzaj instalacji | D7: Miejscowość | E7: Gmina | F7: Powiat | G7: Województwo | H7: Moc [MW] | I7: Inwestor | J7: Adres | K7: Kod pocztowy | L7: Miejscowość inwestora | M7: Województwo inwestora | N7: NIP | O7: Data wpisu do rejestru | P7: Data Od | Q7: Link do koncesji
B8: 1 | C8: Małe instalacje | D8: Gorzów Wielkopolski | E8: Gorzów Wielkopolski | F8: czarnkowsko-trzcianecki | G8: lubuskie | H8: 0.1 | I8: Zakład Energoelektryczny ENERGO-STIL Sp. z o.o. | J8: ul. Walczaka 25 | K8: 66-400 | L8: Gorzów Wielkopolski | M8: lubuskie | N8: 5992277261 | O8: 2023-07-27 | P8: 2023-07-27
B9: 2 | C9: Małe instalacje | D9: Gorzów Wielkopolski | E9: Gorzów Wielkopolski | F9: czarnkowsko-trzcianecki | G9: lubuskie | H9: 0.1 | I9: Zakład Energoelektryczny ENERGO-STIL Sp. z o.o. | J9: ul. Walczaka 25 | K9: 66-400 | L9: Gorzów Wielkopolski | M9: lubuskie | N9: 5992277261 | O9: 2023-07-27 | P9: 2023-07-27
B10: 3 | C10: Małe instalacje | D10: Gorzów Wielkopolski | E10: Gorzów Wielkopolski | F10: czarnkowsko-trzcianecki | G10: lubuskie | H10: 0.125 | I10: Zakład Energoelektryczny ENERGO-STIL Sp. z o.o. | J10: ul. Walczaka 25 | K10: 66-400 | L10: Gorzów Wielkopolski | M10: lubuskie | N10: 5992277261 | O10: 2023-07-27 | P10: 2023-07-27
B11: 4 | C11: Małe instalacje | D11: Gorzów Wielkopolski | E11: Gorzów Wielkopolski | F11: czarnkowsko-trzcianecki | G11: lubuskie | H11: 0.475 | I11: Zakład Energoelektryczny ENERGO-STIL Sp. z o.o. | J11: ul. Walczaka 25 | K11: 66-400 | L11: Gorzów Wielkopolski | M11: lubuskie | N11: 5992277261 | O11: 2025-05-14 | P11: 2025-05-14
B12: 5 | C12: Małe instalacje | D12: Gorzów Wielkopolski | E12: Gorzów Wielkopolski | F12: czarnkowsko-trzcianecki | G12: lubuskie | H12: 0.475 | I12: Zakład Energoelektryczny ENERGO-STIL Sp. z o.o. | J12: ul. Walczaka 25 | K12: 66-400 | L12: Gorzów Wielkopolski | M12: lubuskie | N12: 5992277261 | O12: 2025-05-14 | P12: 2025-05-14
B13: 6 | C13: Małe instalacje | D13: Kluczbork | E13: Kluczbork | F13: kluczborski | G13: opolskie | H13: 0.099 | I13: Energetyka Cieplna Opolszczyzny Spółka Akcyjna | J13: ul. Harcerska 15 | K13: 45-118 | L13: Opole | M13: opolskie | N13: 7542524950 | O13: 2022-08-25 | P13: 2022-08-25
B14: 7 | C14: Małe instalacje | D14: Opole | E14: Opole | F14: Opole | G14: opolskie | H14: 0.952 | I14: Energetyka Cieplna Opolszczyzny Spółka Akcyjna | J14: ul. Harcerska 15 | K14: 45-118 | L14: Opole | M14: opolskie | N14: 7542524950 | O14: 2024-01-05 | P14: 2024-01-24
B15: 8 | C15: Małe instalacje | D15: Głogów | E15: Głogów | F15: głogowski | G15: dolnośląskie | H15: 0.1 | I15: Energetyka Sp. z o.o. | J15: ul. M. Skłodowskiej - Curie 58 | K15: 59-301 | L15: Lubin | M15: dolnośląskie | N15: 6921010700 | O15: 2015-12-23 | P15: 2014-12-02
B16: 9 | C16: Małe instalacje | D16: Legnica | E16: Legnica | F16: Legnica | G16: dolnośląskie | H16: 0.1 | I16: Energetyka Sp. z o.o. | J16: ul. M. Skłodowskiej - Curie 58 | K16: 59-301 | L16: Lubin | M16: dolnośląskie | N16: 6921010700 | O16: 2015-12-23 | P16: 2014-12-02
B17: 10 | C17: Małe instalacje | D17: Legnica | E17: Legnica | F17: Legnica | G17: dolnośląskie | H17: 0.1 | I17: Energetyka Sp. z o.o. | J17: ul. M. Skłodowskiej - Curie 58 | K17: 59-301 | L17: Lubin | M17: dolnośląskie | N17: 6921010700 | O17: 2015-12-23 | P17: 2015-12-23

Sheet Analiza
B2: Analizy statystyczne funkcjonujących instalacji PV
B4: Copyright ©2025 IEO. Wszelkie prawa zastrzeżone.
H6: 2014-01-01 | I6: =DATE(YEAR(H6)+1,MONTH(H6),DAY(H6)) -> 2015-01-01 | J6: =DATE(YEAR(I6)+1,MONTH(I6),DAY(I6)) -> 2016-01-01 | K6: 2017-01-01 | L6: 2018-01-01 | M6: 2019-01-01 | N6: 2020-01-01 | O6: 2021-01-01 | P6: 2022-01-01 | Q6: 2023-01-01 | R6: 2024-01-01
H7: 2014-12-31 | I7: =DATE(YEAR(H7)+1,MONTH(H7),DAY(H7)) -> 2015-12-31 | J7: =DATE(YEAR(I7)+1,MONTH(I7),DAY(I7)) -> 2016-12-31 | K7: 2017-12-31 | L7: 2018-12-31 | M7: 2019-12-31 | N7: 2020-12-31 | O7: 2021-12-31 | P7: 2022-12-31 | Q7: 2023-12-31 | R7: 2024-12-31
H8: 2014 | I8: 2015 | J8: 2016 | K8: 2017 | L8: 2018 | M8: 2019 | N8: 2020 | O8: 2021 | P8: 2022 | Q8: 2023 | R8: 2024 | S8: suma
F9: Farmy | G9: liczba | H9: =COUNTIFS(Farmy!$P:$P,">="&H6,Farmy!$P:$P,"<="&H7) -> 1 | I9: =COUNTIFS(Farmy!$P:$P,">="&I6,Farmy!$P:$P,"<="&I7) -> 0 | J9: =COUNTIFS(Farmy!$P:$P,">="&J6,Farmy!$P:$P,"<="&J7) -> 0 | K9: =COUNTIFS(Farmy!$P:$P,">="&K6,Farmy!$P:$P,"<="&K7) -> 0 | L9: =COUNTIFS(Farmy!$P:$P,">="&L6,Farmy!$P:$P,"<="&L7) -> 0 | M9: =COUNTIFS(Farmy!$P:$P,">="&M6,Farmy!$P:$P,"<="&M7) -> 1 | N9: =COUNTIFS(Farmy!$P:$P,">="&N6,Farmy!$P:$P,"<="&N7) -> 3 | O9: =COUNTIFS(Farmy!$P:$P,">="&O6,Farmy!$P:$P,"<="&O7) -> 1 | P9: =COUNTIFS(Farmy!$P:$P,">="&P6,Farmy!$P:$P,"<="&P7) -> 1 | Q9: =COUNTIFS(Farmy!$P:$P,">="&Q6,Farmy!$P:$P,"<="&Q7) -> 1 | R9: =COUNTIFS(Farmy!$P:$P,">="&R6,Farmy!$P:$P,"<="&R7) -> 2 | S9: =COUNT(Farmy!H:H) -> 10
G10: moc [MW] | H10: =SUMIFS(Farmy!$H:$H,Farmy!$P:$P,">="&H6,Farmy!$P:$P,"<="&H7) -> 1.20 | I10: =SUMIFS(Farmy!$H:$H,Farmy!$P:$P,">="&I6,Farmy!$P:$P,"<="&I7) -> 0 | J10: =SUMIFS(Farmy!$H:$H,Farmy!$P:$P,">="&J6,Farmy!$P:$P,"<="&J7) -> 0 | K10: =SUMIFS(Farmy!$H:$H,Farmy!$P:$P,">="&K6,Farmy!$P:$P,"<="&K7) -> 0 | L10: =SUMIFS(Farmy!$H:$H,Farmy!$P:$P,">="&L6,Farmy!$P:$P,"<="&L7) -> 0 | M10: =SUMIFS(Farmy!$H:$H,Farmy!$P:$P,">="&M6,Farmy!$P:$P,"<="&M7) -> 1.17 | N10: =SUMIFS(Farmy!$H:$H,Farmy!$P:$P,">="&N6,Farmy!$P:$P,"<="&N7) -> 3.98 | O10: =SUMIFS(Farmy!$H:$H,Farmy!$P:$P,">="&O6,Farmy!$P:$P,"<="&O7) -> 0.92 | P10: =SUMIFS(Farmy!$H:$H,Farmy!$P:$P,">="&P6,Farmy!$P:$P,"<="&P7) -> 1.11 | Q10: =SUMIFS(Farmy!$H:$H,Farmy!$P:$P,">="&Q6,Farmy!$P:$P,"<="&Q7) -> 1.80 | R10: =SUMIFS(Farmy!$H:$H,Farmy!$P:$P,">="&R6,Farmy!$P:$P,"<="&R7) -> 4.00 | S10: =SUM(Farmy!H:H) -> 14.17
G11: średnia moc | H11: =IFERROR(H10/H9,"-") -> 1.20 | I11: =IFERROR(I10/I9,"-") -> - | J11: - | K11: - | L11: - | M11: 1.17 | N11: 1.33 | O11: 0.92 | P11: 1.11 | Q11: 1.80 | R11: 2.00 | S11: =S10/S9 -> 1.42
H13: 2014 | I13: 2015 | J13: 2016 | K13: 2017 | L13: 2018 | M13: 2019 | N13: 2020 | O13: 2021 | P13: 2022 | Q13: 2023 | R13: 2024 | S13: suma
F14: Małe instalacje | G14: liczba | H14: =COUNTIFS('Małe instalacje'!$P:$P,">="&H6,'Małe instalacje'!$P:$P,"<="&H7) -> 2 | I14: =COUNTIFS('Małe instalacje'!$P:$P,">="&I6,'Małe instalacje'!$P:$P,"<="&I7) -> 1 | J14: =COUNTIFS('Małe instalacje'!$P:$P,">="&J6,'Małe instalacje'!$P:$P,"<="&J7) -> 0 | K14: =COUNTIFS('Małe instalacje'!$P:$P,">="&K6,'Małe instalacje'!$P:$P,"<="&K7) -> 0 | L14: =COUNTIFS('Małe instalacje'!$P:$P,">="&L6,'Małe instalacje'!$P:$P,"<="&L7) -> 0 | M14: =COUNTIFS('Małe instalacje'!$P:$P,">="&M6,'Małe instalacje'!$P:$P,"<="&M7) -> 0 | N14: =COUNTIFS('Małe instalacje'!$P:$P,">="&N6,'Małe instalacje'!$P:$P,"<="&N7) -> 0 | O14: =COUNTIFS('Małe instalacje'!$P:$P,">="&O6,'Małe instalacje'!$P:$P,"<="&O7) -> 0 | P14: =COUNTIFS('Małe instalacje'!$P:$P,">="&P6,'Małe instalacje'!$P:$P,"<="&P7) -> 1 | Q14: =COUNTIFS('Małe instalacje'!$P:$P,">="&Q6,'Małe instalacje'!$P:$P,"<="&Q7) -> 3 | R14: =COUNTIFS('Małe instalacje'!$P:$P,">="&R6,'Małe instalacje'!$P:$P,"<="&R7) -> 1 | S14: =COUNT('Małe instalacje'!H:H) -> 10
G15: moc [MW] | H15: =SUMIFS('Małe instalacje'!$H:$H,'Małe instalacje'!$P:$P,">="&H6,'Małe instalacje'!$P:$P,"<="&H7) -> 0.20 | I15: =SUMIFS('Małe instalacje'!$H:$H,'Małe instalacje'!$P:$P,">="&I6,'Małe instalacje'!$P:$P,"<="&I7) -> 0.10 | J15: =SUMIFS('Małe instalacje'!$H:$H,'Małe instalacje'!$P:$P,">="&J6,'Małe instalacje'!$P:$P,"<="&J7) -> 0 | K15: =SUMIFS('Małe instalacje'!$H:$H,'Małe instalacje'!$P:$P,">="&K6,'Małe instalacje'!$P:$P,"<="&K7) -> 0 | L15: =SUMIFS('Małe instalacje'!$H:$H,'Małe instalacje'!$P:$P,">="&L6,'Małe instalacje'!$P:$P,"<="&L7) -> 0 | M15: =SUMIFS('Małe instalacje'!$H:$H,'Małe instalacje'!$P:$P,">="&M6,'Małe instalacje'!$P:$P,"<="&M7) -> 0 | N15: =SUMIFS('Małe instalacje'!$H:$H,'Małe instalacje'!$P:$P,">="&N6,'Małe instalacje'!$P:$P,"<="&N7) -> 0 | O15: =SUMIFS('Małe instalacje'!$H:$H,'Małe instalacje'!$P:$P,">="&O6,'Małe instalacje'!$P:$P,"<="&O7) -> 0 | P15: =SUMIFS('Małe instalacje'!$H:$H,'Małe instalacje'!$P:$P,">="&P6,'Małe instalacje'!$P:$P,"<="&P7) -> 0.10 | Q15: =SUMIFS('Małe instalacje'!$H:$H,'Małe instalacje'!$P:$P,">="&Q6,'Małe instalacje'!$P:$P,"<="&Q7) -> 0.33 | R15: =SUMIFS('Małe instalacje'!$H:$H,'Małe instalacje'!$P:$P,">="&R6,'Małe instalacje'!$P:$P,"<="&R7) -> 0.95 | S15: =SUM('Małe instalacje'!H:H) -> 2.63
G16: średnia moc | H16: =IFERROR(H15/H14,"-") -> 0.10 | I16: =IFERROR(I15/I14,"-") -> 0.10 | J16: - | K16: - | L16: - | M16: - | N16: - | O16: - | P16: 0.10 | Q16: 0.11 | R16: 0.95 | S16: =S15/S14 -> 0.26
H18: 2014 | I18: 2015 | J18: 2016 | K18: 2017 | L18: 2018 | M18: 2019 | N18: 2020 | O18: 2021 | P18: 2022 | Q18: 2023 | R18: 2024 | S18: suma
F19: Razem | G19: liczba | H19: =H9+H14 -> 3 | I19: =I9+I14 -> 1 | J19: 0 | K19: 0 | L19: 0 | M19: 1 | N19: 3 | O19: 1 | P19: 2 | Q19: 4 | R19: 3 | S19: =S9+S14 -> 20
G20: moc [MW] | H20: =H10+H15 -> 1.40 | I20: =I10+I15 -> 0.10 | J20: 0 | K20: 0 | L20: 0 | M20: 1.17 | N20: 3.98 | O20: 0.92 | P20: 1.21 | Q20: 2.12 | R20: 4.95 | S20: 16.80
G21: średnia moc | H21: =IFERROR(H20/H19,"-") -> 0.47 | I21: =IFERROR(I20/I19,"-") -> 0.10 | J21: - | K21: - | L21: - | M21: 1.17 | N21: 1.33 | O21: 0.92 | P21: 0.60 | Q21: 0.53 | R21: 1.65 | S21: 0.84
E40: Rozkład farm w województwach | K40: Rozkład małych instalacji w województwach | Q40: Rozkład wszystkich instalacji w województwach
F42: liczba | G42: moc [MW] | H42: średnia moc instalacji [MW] | L42: liczba | M42: moc [MW] | N42: średnia moc instalacji [MW] | R42: liczba | S42: moc [MW] | T42: średnia moc instalacji [MW]
E44: zachodniopomorskie | F44: =IFERROR(COUNTIFS(Farmy!$G:$G,"="&E44),"-") -> 0 | G44: =IFERROR(SUMIFS(Farmy!$H:$H,Farmy!$G:$G,"="&E44),"-") -> 0.00 | H44: =IFERROR(G44/F44,"-") -> - | K44: zachodniopomorskie | L44: =IFERROR(COUNTIFS('Małe instalacje'!$G:$G,"="&E44),"-") -> 0 | M44: =IFERROR(SUMIFS('Małe instalacje'!$H:$H,'Małe instalacje'!$G:$G,"="&E44),"-") -> 0.00 | N44: =IFERROR(M44/L44,"-") -> - | Q44: zachodniopomorskie | R44: =IFERROR(F44+L44,"-") -> 0 | S44: =IFERROR(G44+M44,"-") -> 0.00 | T44: =IFERROR(S44/R44,"-") -> -
E45: pomorskie | F45: =IFERROR(COUNTIFS(Farmy!$G:$G,"="&E45),"-") -> 0 | G45: =IFERROR(SUMIFS(Farmy!$H:$H,Farmy!$G:$G,"="&E45),"-") -> 0.00 | H45: =IFERROR(G45/F45,"-") -> - | K45: pomorskie | L45: =IFERROR(COUNTIFS('Małe instalacje'!$G:$G,"="&E45),"-") -> 0 | M45: =IFERROR(SUMIFS('Małe instalacje'!$H:$H,'Małe instalacje'!$G:$G,"="&E45),"-") -> 0.00 | N45: =IFERROR(M45/L45,"-") -> - | Q45: pomorskie | R45: =IFERROR(F45+L45,"-") -> 0 | S45: =IFERROR(G45+M45,"-") -> 0.00 | T45: =IFERROR(S45/R45,"-") -> -
E46: kujawsko-pomorskie | F46: =IFERROR(COUNTIFS(Farmy!$G:$G,"="&E46),"-") -> 0 | G46: =IFERROR(SUMIFS(Farmy!$H:$H,Farmy!$G:$G,"="&E46),"-") -> 0.00 | H46: - | K46: kujawsko-pomorskie | L46: =IFERROR(COUNTIFS('Małe instalacje'!$G:$G,"="&E46),"-") -> 0 | M46: =IFERROR(SUMIFS('Małe instalacje'!$H:$H,'Małe instalacje'!$G:$G,"="&E46),"-") -> 0.00 | N46: - | Q46: kujawsko-pomorskie | R46: 0 | S46: 0.00 | T46: -
E47: łódzkie | F47: =IFERROR(COUNTIFS(Farmy!$G:$G,"="&E47),"-") -> 1 | G47: =IFERROR(SUMIFS(Farmy!$H:$H,Farmy!$G:$G,"="&E47),"-") -> 1.20 | H47: 1.20 | K47: łódzkie | L47: =IFERROR(COUNTIFS('Małe instalacje'!$G:$G,"="&E47),"-") -> 0 | M47: =IFERROR(SUMIFS('Małe instalacje'!$H:$H,'Małe instalacje'!$G:$G,"="&E47),"-") -> 0.00 | N47: - | Q47: łódzkie | R47: 1 | S47: 1.20 | T47: 1.20
E48: wielkopolskie | F48: =IFERROR(COUNTIFS(Farmy!$G:$G,"="&E48),"-") -> 0 | G48: =IFERROR(SUMIFS(Farmy!$H:$H,Farmy!$G:$G,"="&E48),"-") -> 0.00 | H48: - | K48: wielkopolskie | L48: =IFERROR(COUNTIFS('Małe instalacje'!$G:$G,"="&E48),"-") -> 0 | M48: =IFERROR(SUMIFS('Małe instalacje'!$H:$H,'Małe instalacje'!$G:$G,"="&E48),"-") -> 0.00 | N48: - | Q48: wielkopolskie | R48: 0 | S48: 0.00 | T48: -
E49: mazowieckie | F49: =IFERROR(COUNTIFS(Farmy!$G:$G,"="&E49),"-") -> 1 | G49: =IFERROR(SUMIFS(Farmy!$H:$H,Farmy!$G:$G,"="&E49),"-") -> 1.11 | H49: 1.11 | K49: mazowieckie | L49: =IFERROR(COUNTIFS('Małe instalacje'!$G:$G,"="&E49),"-") -> 0 | M49: =IFERROR(SUMIFS('Małe instalacje'!$H:$H,'Małe instalacje'!$G:$G,"="&E49),"-") -> 0.00 | N49: - | Q49: mazowieckie | R49: 1 | S49: 1.11 | T49: 1.11
E50: warmińsko-mazurskie | F50: =IFERROR(COUNTIFS(Farmy!$G:$G,"="&E50),"-") -> 5 | G50: =IFERROR(SUMIFS(Farmy!$H:$H,Farmy!$G:$G,"="&E50),"-") -> 6.89 | H50: 1.38 | K50: warmińsko-mazurskie | L50: =IFERROR(COUNTIFS('Małe instalacje'!$G:$G,"="&E50),"-") -> 0 | M50: =IFERROR(SUMIFS('Małe instalacje'!$H:$H,'Małe instalacje'!$G:$G,"="&E50),"-") -> 0.00 | N50: - | Q50: warmińsko-mazurskie | R50: 5 | S50: 6.89 | T50: 1.38
E51: lubuskie | F51: =IFERROR(COUNTIFS(Farmy!$G:$G,"="&E51),"-") -> 0 | G51: =IFERROR(SUMIFS(Farmy!$H:$H,Farmy!$G:$G,"="&E51),"-") -> 0.00 | H51: - | K51: lubuskie | L51: =IFERROR(COUNTIFS('Małe instalacje'!$G:$G,"="&E51),"-") -> 5 | M51: =IFERROR(SUMIFS('Małe instalacje'!$H:$H,'Małe instalacje'!$G:$G,"="&E51),"-") -> 1.28 | N51: 0.26 | Q51: lubuskie | R51: 5 | S51: 1.28 | T51: 0.26
E52: podlaskie | F52: =IFERROR(COUNTIFS(Farmy!$G:$G,"="&E52),"-") -> 0 | G52: =IFERROR(SUMIFS(Farmy!$H:$H,Farmy!$G:$G,"="&E52),"-") -> 0.00 | H52: - | K52: podlaskie | L52: =IFERROR(COUNTIFS('Małe instalacje'!$G:$G,"="&E52),"-") -> 0 | M52: =IFERROR(SUMIFS('Małe instalacje'!$H:$H,'Małe instalacje'!$G:$G,"="&E52),"-") -> 0.00 | N52: - | Q52: podlaskie | R52: 0 | S52: 0.00 | T52: -
E53: dolnośląskie | F53: =IFERROR(COUNTIFS(Farmy!$G:$G,"="&E53),"-") -> 0 | G53: =IFERROR(SUMIFS(Farmy!$H:$H,Farmy!$G:$G,"="&E53),"-") -> 0.00 | H53: - | K53: dolnośląskie | L53: =IFERROR(COUNTIFS('Małe instalacje'!$G:$G,"="&E53),"-") -> 3 | M53: =IFERROR(SUMIFS('Małe instalacje'!$H:$H,'Małe instalacje'!$G:$G,"="&E53),"-") -> 0.30 | N53: 0.10 | Q53: dolnośląskie | R53: 3 | S53: 0.30 | T53: 0.10
E54: lubelskie | F54: =IFERROR(COUNTIFS(Farmy!$G:$G,"="&E54),"-") -> 0 | G54: =IFERROR(SUMIFS(Farmy!$H:$H,Farmy!$G:$G,"="&E54),"-") -> 0.00 | H54: - | K54: lubelskie | L54: =IFERROR(COUNTIFS('Małe instalacje'!$G:$G,"="&E54),"-") -> 0 | M54: =IFERROR(SUMIFS('Małe instalacje'!$H:$H,'Małe instalacje'!$G:$G,"="&E54),"-") -> 0.00 | N54: - | Q54: lubelskie | R54: 0 | S54: 0.00 | T54: -
E55: opolskie | F55: =IFERROR(COUNTIFS(Farmy!$G:$G,"="&E55),"-") -> 0 | G55: =IFERROR(SUMIFS(Farmy!$H:$H,Farmy!$G:$G,"="&E55),"-") -> 0.00 | H55: - | K55: opolskie | L55: =IFERROR(COUNTIFS('Małe instalacje'!$G:$G,"="&E55),"-") -> 2 | M55: =IFERROR(SUMIFS('Małe instalacje'!$H:$H,'Małe instalacje'!$G:$G,"="&E55),"-") -> 1.05 | N55: 0.53 | Q55: opolskie | R55: 2 | S55: 1.05 | T55: 0.53
E56: podkarpackie | F56: =IFERROR(COUNTIFS(Farmy!$G:$G,"="&E56),"-") -> 3 | G56: =IFERROR(SUMIFS(Farmy!$H:$H,Farmy!$G:$G,"="&E56),"-") -> 4.97 | H56: 1.66 | K56: podkarpackie | L56: =IFERROR(COUNTIFS('Małe instalacje'!$G:$G,"="&E56),"-") -> 0 | M56: =IFERROR(SUMIFS('Małe instalacje'!$H:$H,'Małe instalacje'!$G:$G,"="&E56),"-") -> 0.00 | N56: - | Q56: podkarpackie | R56: 3 | S56: 4.97 | T56: 1.66
E57: śląskie | F57: =IFERROR(COUNTIFS(Farmy!$G:$G,"="&E57),"-") -> 0 | G57: =IFERROR(SUMIFS(Farmy!$H:$H,Farmy!$G:$G,"="&E57),"-") -> 0.00 | H57: - | K57: śląskie | L57: =IFERROR(COUNTIFS('Małe instalacje'!$G:$G,"="&E57),"-") -> 0 | M57: =IFERROR(SUMIFS('Małe instalacje'!$H:$H,'Małe instalacje'!$G:$G,"="&E57),"-") -> 0.00 | N57: - | Q57: śląskie | R57: 0 | S57: 0.00 | T57: -
E58: świętokrzyskie | F58: =IFERROR(COUNTIFS(Farmy!$G:$G,"="&E58),"-") -> 0 | G58: =IFERROR(SUMIFS(Farmy!$H:$H,Farmy!$G:$G,"="&E58),"-") -> 0.00 | H58: - | K58: świętokrzyskie | L58: =IFERROR(COUNTIFS('Małe instalacje'!$G:$G,"="&E58),"-") -> 0 | M58: =IFERROR(SUMIFS('Małe instalacje'!$H:$H,'Małe instalacje'!$G:$G,"="&E58),"-") -> 0.00 | N58: - | Q58: świętokrzyskie | R58: 0 | S58: 0.00 | T58: -
E59: małopolskie | F59: =IFERROR(COUNTIFS(Farmy!$G:$G,"="&E59),"-") -> 0 | G59: =IFERROR(SUMIFS(Farmy!$H:$H,Farmy!$G:$G,"="&E59),"-") -> 0.00 | H59: - | K59: małopolskie | L59: =IFERROR(COUNTIFS('Małe instalacje'!$G:$G,"="&E59),"-") -> 0 | M59: =IFERROR(SUMIFS('Małe instalacje'!$H:$H,'Małe instalacje'!$G:$G,"="&E59),"-") -> 0.00 | N59: - | Q59: małopolskie | R59: 0 | S59: 0.00 | T59: -
I99: 0
I100: 0
I101: 0
E102: 0 | F102: 0.5 | J102: 0.5 | K102: 1 | L102: 5 | M102: 10 | N102: 30 | O102: 5 | P102: 10 | Q102: 0 | R102: 0.5 | S102: 1 | T102: 5 | U102: 10 | V102: 30
E103: 0.5 | F103: 1 | J103: 1 | K103: 5 | L103: 10 | M103: 30 | O103: 10 | P103: 30 | Q103: 0.5 | R103: 1 | S103: 5 | T103: 10 | U103: 30
D104: Małe instalacje z danego zakresu mocy | E104: < 0,5 MW | F104: 0,5 - 1 MW | I104: Farmy z danego zakresu mocy | J104: 0,5 - 1 MW | K104: 1-5 MW | L104: 5-10 MW | M104: 10-30 MW | N104: > 30 MW | P104: Wszystkie instalacje | Q104: < 0,5 MW | R104: 0,5 - 1 MW | S104: 1-5 MW | T104: 5-10 MW | U104: 10-30 MW | V104: > 30 MW
D105: liczba | E105: =COUNTIFS('Małe instalacje'!$H:$H,">="&E102,'Małe instalacje'!$H:$H,"<"&E103) -> 9 | F105: =COUNTIFS('Małe instalacje'!$H:$H,">="&F102,'Małe instalacje'!$H:$H,"<"&F103) -> 1 | I105: liczba | J105: =COUNTIFS(Farmy!$H:$H,">="&J102,Farmy!$H:$H,"<"&J103) -> 3 | K105: =COUNTIFS(Farmy!$H:$H,">="&K102,Farmy!$H:$H,"<"&K103) -> 7 | L105: =COUNTIFS(Farmy!$H:$H,">="&L102,Farmy!$H:$H,"<"&L103) -> 0 | M105: =COUNTIFS(Farmy!$H:$H,">="&M102,Farmy!$H:$H,"<"&M103) -> 0 | N105: =COUNTIFS(Farmy!$H:$H,">="&N102) -> 0 | P105: liczba | Q105: =E105 -> 9 | R105: =F105+J105 -> 4 | S105: =K105 -> 7 | T105: 0 | U105: 0 | V105: 0
D106: moc [MW] | E106: =SUMIFS('Małe instalacje'!$H:$H,'Małe instalacje'!$H:$H,">="&E102,'Małe instalacje'!$H:$H,"<"&E103) -> 1.67 | F106: =SUMIFS('Małe instalacje'!$H:$H,'Małe instalacje'!$H:$H,">="&F102,'Małe instalacje'!$H:$H,"<"&F103) -> 0.95 | I106: moc [MW] | J106: =SUMIFS(Farmy!$H:$H,Farmy!$H:$H,">="&J102,Farmy!$H:$H,"<"&J103) -> 2.92 | K106: =SUMIFS(Farmy!$H:$H,Farmy!$H:$H,">="&K102,Farmy!$H:$H,"<"&K103) -> 11.26 | L106: =SUMIFS(Farmy!$H:$H,Farmy!$H:$H,">="&L102,Farmy!$H:$H,"<"&L103) -> 0 | M106: =SUMIFS(Farmy!$H:$H,Farmy!$H:$H,">="&M102,Farmy!$H:$H,"<"&M103) -> 0 | N106: =SUMIFS(Farmy!$H:$H,Farmy!$H:$H,">="&N102) -> 0 | P106: moc [MW] | Q106: =E106 -> 1.67 | R106: =F106+J106 -> 3.87 | S106: 11.26 | T106: 0 | U106: 0 | V106: 0

Sheet Operatorzy zestawienie
B2: ZESTAWIENIE DLA OPERATORÓW
B3: Informacje o największych operatorów farm PV
R4: Copyright ©2025 IEO. Wszelkie prawa zastrzeżone.
C7: Nazwa Operatora (spółki holdingowej) | D7: Całkowita Moc Projektów [MW] | E7: Liczba projektów
C8: EKOENERGIA MAZURY | D8: 4.0 | E8: 3
C9: REMET CNC TECHNOLOGY M&P PIEKUT | D9: 2.0 | E9: 1 | J9: ='Operatorzy zestawienie '!$C8 -> EKOENERGIA MAZURY | K9: ='Operatorzy zestawienie '!$D8 -> 3.995
C10: EKO PARK XIV | D10: 2.0 | E10: 1 | J10: ='Operatorzy zestawienie '!$C9 -> REMET CNC TECHNOLOGY M&P PIEKUT | K10: ='Operatorzy zestawienie '!$D9 -> 1.999
C11: Creator | D11: 1.8 | E11: 1 | J11: ='Operatorzy zestawienie '!$C10 -> EKO PARK XIV | K11: ='Operatorzy zestawienie '!$D10 -> 1.979
C12: ELEKTRIO Marian Jóźwiak, Jarosław Zdziarski s.c. | D12: 1.2 | E12: 1 | J12: ='Operatorzy zestawienie '!$C11 -> Creator | K12: ='Operatorzy zestawienie '!$D11 -> 1.799
C13: AGMAD - SOLAR | D13: 1.2 | E13: 1 | J13: ='Operatorzy zestawienie '!$C12 -> ELEKTRIO Marian Jóźwiak, Jarosław Zdziarski s.c. | K13: ='Operatorzy zestawienie '!$D12 -> 1.199
C14: ALNOR - SYSTEMY WENTYLACJI | D14: 1.1 | E14: 1 | J14: ='Operatorzy zestawienie '!$C13 -> AGMAD - SOLAR | K14: ='Operatorzy zestawienie '!$D13 -> 1.174
C15: AWAT | D15: 0.9 | E15: 1 | J15: ='Operatorzy zestawienie '!$C14 -> ALNOR - SYSTEMY WENTYLACJI | K15: ='Operatorzy zestawienie '!$D14 -> 1.109
J16: ='Operatorzy zestawienie '!$C15 -> AWAT | K16: ='Operatorzy zestawienie '!$D15 -> 0.919
J17: ='Operatorzy zestawienie '!$C16 -> 0 | K17: ='Operatorzy zestawienie '!$D16 -> 0
J18: ='Operatorzy zestawienie '!$C17 -> 0 | K18: ='Operatorzy zestawienie '!$D17 -> 0
J19: ='Operatorzy zestawienie '!$C18 -> 0 | K19: ='Operatorzy zestawienie '!$D18 -> 0
J20: ='Operatorzy zestawienie '!$C19 -> 0 | K20: ='Operatorzy zestawienie '!$D19 -> 0
J21: ='Operatorzy zestawienie '!$C20 -> 0 | K21: ='Operatorzy zestawienie '!$D20 -> 0
J22: ='Operatorzy zestawienie '!$C21 -> 0 | K22: ='Operatorzy zestawienie '!$D21 -> 0
J23: ='Operatorzy zestawienie '!$C22 -> 0 | K23: ='Operatorzy zestawienie '!$D22 -> 0
J24: ='Operatorzy zestawienie '!$C23 -> 0 | K24: ='Operatorzy zestawienie '!$D23 -> 0
J25: ='Operatorzy zestawienie '!$C24 -> 0 | K25: ='Operatorzy zestawienie '!$D24 -> 0
J26: ='Operatorzy zestawienie '!$C25 -> 0 | K26: ='Operatorzy zestawienie '!$D25 -> 0
J27: ='Operatorzy zestawienie '!$C26 -> 0 | K27: ='Operatorzy zestawienie '!$D26 -> 0
J28: ='Operatorzy zestawienie '!$C54 -> Pozostałe projekty zidentyfikowanych operatorów | K28: ='Operatorzy zestawienie '!$D54 -> 0
C54: Pozostałe projekty zidentyfikowanych operatorów | D54: =D55-SUM(D8:D51) -> 0 | E54: =E55-SUM(E8:E51) -> 0
C55: łącznie zidentyfikowanych projektów | D55: =Analiza!S10 -> 14.2 | E55: =Analiza!S9 -> 10

Sheet PV na tle innych OZE
B2: Farmy PV na tle innych źródeł OZE
B4: Copyright ©2025 IEO. Wszelkie prawa zastrzeżone.
D10: Instalacje produkujące energię elektryczną [moc skumulowana] | E10: 2016 | F10: 2017 | G10: 2018 | H10: 2019 | I10: 2020 | J10: 2021 | K10: 2022 | L10: 2023 | M10: 2024 | N10: 2025 (VI)
D11: PV (wszystkie rodzaje) | E11: 187.60 | F11: 261.80 | G11: 505.66 | H11: 1,529.20 | I11: 3,961.40 | J11: 7,681.40 | K11: 12,114.70 | L11: 17,057.10 | M11: 21,157.02 | N11: - | O11: MW
D12: BIOGAZ | E12: 233.97 | F12: 235.37 | G12: 237.62 | H12: 225.20 | I12: 240.60 | J12: 249.50 | K12: 271.70 | L12: 293.80 | M12: 306.28 | N12: - | O12: MW
D13: BIOMASA | E13: 1,281.07 | F13: 1,362.03 | G13: 1,362.87 | H13: 812.90 | I13: 815.20 | J13: 819.50 | K13: 849.30 | L13: 981.60 | M13: 969.58 | N13: - | O13: MW
D14: WIATR | E14: 5,807.42 | F14: 5,848.67 | G14: 5,864.44 | H14: 5,868.90 | I14: 6,327.90 | J14: 7,007.70 | K14: 8,129.50 | L14: 9,428.30 | M14: 10,139.54 | N14: - | O14: MW
D15: WODA | E15: 994.00 | F15: 988.38 | G15: 981.50 | H15: 978.10 | I15: 980.60 | J15: 983.90 | K15: 985.20 | L15: 979.10 | M15: 980.83 | N15: - | O15: MW
N16: 06.2025 - dane ARE
F50: rodzaj instalacji | G50: PV | H50: BIOGAZ | I50: BIOMASA | J50: WIATR | K50: WODA
F51: moc [MW] | G51: =N11 -> - | H51: =N12 -> - | I51: =N13 -> - | J51: =N14 -> - | K51: =N15 -> -

Sheet Mapy
B2: Mapy funkcjonujących farm PV w Polsce
B3: Mapy zostały stworzone przy użyciu strony Mapy Google. Po kliknięciu na grafikę mapy otworzy się przeglądarka z interaktywną zawartością mapy
B4: Copyright ©2025 IEO. Wszelkie prawa zastrzeżone.
